bitfinex/quotes_BTCUSD_20240821
["timestamp","ask_amount","ask_price","bid_price","bid_amount"]
[1724266787204,1.94964,60916.0,60915.0,0.94132124]
[1724266787443,2.61071491,60916.0,60915.0,0.91650124]
[1724266787646,2.61071491,60916.0,60904.0,0.0009064]
[1724266787647,1.55433,60905.0,60904.0,0.0009064]
[1724266787858,2.84706184,60905.0,60904.0,0.0009064]
[1724266788484,3.12716184,60905.0,60904.0,0.0009064]
[1724266789358,3.13716184,60905.0,60904.0,0.0009064]
[1724266789584,3.46554184,60905.0,60904.0,0.0009064]
[1724266789800,3.62952062,60905.0,60904.0,0.0009064]
[1724266790012,3.61952062,60905.0,60904.0,4e-07]
[1724266790226,3.64052062,60905.0,60904.0,4e-07]
[1724266790435,3.64052062,60905.0,60887.0,0.0009064]
[1724266790436,2.158126,60896.0,60887.0,0.0009064]
[1724266790640,2.60834576,60896.0,60887.0,0.0009064]
[1724266791075,2.60434576,60896.0,60887.0,0.0009064]
[1724266791295,1.69661776,60896.0,60894.0,0.4111]
[1724266791712,1.69661776,60896.0,60891.0,0.1806]
[1724266791713,2.02604576,60896.0,60887.0,0.4120064]
[1724266791918,2.19002454,60896.0,60887.0,0.4120064]
[1724266792087,2.02604576,60896.0,60887.0,0.4120064]
[1724266792303,2.03704576,60896.0,60887.0,0.4120064]
[1724266792458,2.07404576,60896.0,60887.0,0.4120064]
[1724266794084,2.07804576,60896.0,60887.0,0.4120064]
[1724266794387,2.08090894,60896.0,60887.0,0.4120064]
[1724266794583,2.24488772,60896.0,60887.0,0.4120064]
[1724266794821,2.07590894,60896.0,60887.0,0.4120064]
[1724266795019,1.74748094,60896.0,60887.0,0.4120064]
[1724266795966,1.74748094,60896.0,60895.0,0.4060064]
[1724266796380,1.34748094,60896.0,60895.0,0.4060064]
[1724266796590,1.34748094,60896.0,60895.0,0.5989064]
[1724266796989,1.00805294,60896.0,60895.0,0.5989064]
[1724266797392,1.01405294,60896.0,60895.0,0.5989064]
[1724266797590,1.00005294,60896.0,60895.0,0.5989064]
[1724266797999,1.00905294,60896.0,60895.0,0.5989064]
[1724266798201,1.33748094,60896.0,60895.0,0.5989064]
[1724266800211,1.33658094,60896.0,60895.0,0.5989064]
[1724266800413,1.33758094,60896.0,60895.0,0.4060064]
[1724266800731,1.00875965,60896.0,60895.0,0.4060064]
[1724266800949,1.33818765,60896.0,60895.0,0.4060064]
[1724266801339,1.33532447,60896.0,60895.0,0.4060064]
[1724266801714,1.33532447,60896.0,60895.0,0.0009064]
[1724266801715,1.65475247,60896.0,60895.0,0.0009064]
[1724266801920,1.83173125,60896.0,60895.0,0.0009064]
[1724266802122,2.44425925,60896.0,60895.0,0.0009064]
[1724266802392,2.44425925,60896.0,60887.0,0.0009064]
[1724266802393,2.345219,60888.0,60887.0,0.0009064]
[1724266802541,3.03905481,60888.0,60887.0,0.0009064]
[1724266802742,3.30303359,60888.0,60887.0,0.0009064]
[1724266802991,3.39956562,60888.0,60887.0,0.0009064]
[1724266803200,3.37503781,60888.0,60887.0,0.0009064]
[1724266803401,2.83358381,60888.0,60887.0,0.0009064]
[1724266803604,2.79658484,60888.0,60887.0,0.0009064]
[1724266803820,2.34448484,60888.0,60887.0,0.0009064]
[1724266804064,2.00601384,60888.0,60887.0,0.0009064]
[1724266804275,2.02001384,60888.0,60887.0,0.0009064]
[1724266804490,2.51246362,60888.0,60887.0,0.0009064]
[1724266804717,2.79766362,60888.0,60887.0,0.0009064]
[1724266804917,2.30521384,60888.0,60887.0,0.0009064]
[1724266805126,2.01601384,60888.0,60887.0,0.0009064]
[1724266805330,1.74991384,60888.0,60887.0,0.0009064]
[1724266805529,1.73591384,60888.0,60887.0,0.0009064]
[1724266805947,1.70891384,60888.0,60887.0,0.1875064]
[1724266806153,1.38344284,60888.0,60887.0,0.1875064]
[1724266806562,1.39744284,60888.0,60887.0,0.1875064]
[1724266806774,0.65497184,60888.0,60887.0,0.5771064]
[1724266806903,0.88344284,60888.0,60887.0,0.5771064]
[1724266807103,0.89144284,60888.0,60887.0,0.5771064]
[1724266807336,0.87744284,60888.0,60887.0,0.5771064]
[1724266807781,0.88944284,60888.0,60887.0,0.5771064]
[1724266808161,0.87744284,60888.0,60887.0,0.5771064]
[1724266808562,0.87630595,60888.0,60887.0,0.5770596]
[1724266808941,0.49956911,60888.0,60887.0,0.5770596]
[1724266809181,0.19409811,60888.0,60887.0,0.5770596]
[1724266809787,0.00686311,60888.0,60887.0,0.5770596]
[1724266809987,0.00886311,60888.0,60887.0,0.7412976]
[1724266810208,0.00886311,60888.0,60887.0,1.0697746]
[1724266810412,0.00886311,60888.0,60887.0,1.7267286]
[1724266810413,0.00486311,60888.0,60887.0,1.7267286]
[1724266810617,0.002,60888.0,60887.0,1.7267286]
[1724266810845,0.002,60888.0,60887.0,1.3982516]
[1724266811043,0.15705637,60896.0,60891.0,0.6006]
[1724266811364,0.00286244,60899.0,60892.0,0.4105]
[1724266811577,0.16706944,60899.0,60895.0,0.6006]
[1724266811803,0.164209,60898.0,60896.0,0.4105]
[1724266812005,0.164211,60897.0,60896.0,0.4105]
[1724266813018,0.165211,60897.0,60896.0,0.4105]
[1724266813224,0.493634,60897.0,60896.0,0.4105]
[1724266813385,0.164211,60897.0,60896.0,0.4105]
[1724266813577,0.001,60897.0,60896.0,0.4105]
[1724266813988,0.822057,60897.0,60896.0,0.4105]
[1724266814399,1.19807164,60897.0,60896.0,0.4105]
[1724266814603,0.88528264,60897.0,60896.0,0.4105]
[1724266814812,1.21370564,60897.0,60896.0,0.4105]
[1724266815029,0.88528264,60897.0,60896.0,0.4105]
[1724266815237,0.001,60897.0,60896.0,0.4105]
[1724266815421,0.001,60897.0,60896.0,0.574714]
[1724266815422,0.002,60897.0,60896.0,0.574714]
[1724266815683,0.001,60897.0,60896.0,0.770414]
[1724266815888,0.001,60897.0,60896.0,1.098842]
[1724266816111,0.001,60897.0,60896.0,0.770414]
[1724266816318,0.001,60897.0,60896.0,1.098842]
[1724266816525,0.002,60897.0,60896.0,0.770414]
[1724266816735,0.001,60897.0,60896.0,0.6062]
[1724266816947,0.165211,60897.0,60896.0,0.6062]
[1724266817153,0.516634,60897.0,60896.0,0.6062]
[1724266817365,0.844057,60897.0,60896.0,0.6062]
[1724266817542,0.845057,60897.0,60896.0,0.6062]
[1724266818609,0.846057,60897.0,60896.0,0.6062]
[1724266819022,0.845057,60897.0,60896.0,0.6062]
[1724266819442,0.844057,60897.0,60896.0,0.6062]
[1724266820093,0.515634,60897.0,60896.0,0.6062]
[1724266820716,0.516634,60897.0,60896.0,0.6062]
[1724266821552,0.515634,60897.0,60896.0,0.6062]
[1724266821967,0.515634,60897.0,60896.0,1.098842]
[1724266821968,0.001,60897.0,60896.0,1.098842]
[1724266822575,0.001,60897.0,60896.0,1.42727]
[1724266824838,0.00368744,60899.0,60898.0,0.880027]
[1724266825015,0.00368744,60899.0,60898.0,1.208445]
[1724266825669,0.00368744,60899.0,60898.0,2.21268398]
[1724266825875,0.000825,60899.0,60898.0,2.21268398]
[1724266826482,0.001825,60899.0,60898.0,2.22268398]
[1724266826597,0.000825,60899.0,60898.0,2.21268398]
[1724266826797,0.000825,60899.0,60898.0,1.720263]
[1724266827004,0.001825,60899.0,60898.0,1.723263]
[1724266827430,0.000825,60899.0,60898.0,1.720263]
[1724266827823,0.002825,60899.0,60898.0,1.732263]
[1724266828224,0.000825,60899.0,60898.0,1.720263]
[1724266828423,0.001825,60899.0,60898.0,1.729263]
[1724266828670,0.00242971,60899.0,60898.0,1.732263]
[1724266828843,0.00142971,60899.0,60898.0,1.723263]
[1724266829173,0.00242971,60899.0,60898.0,1.732263]
[1724266829377,0.00142971,60899.0,60898.0,1.723263]
[1724266829779,0.00242971,60899.0,60898.0,1.080427]
[1724266830004,0.00142971,60899.0,60898.0,0.5848]
[1724266830139,0.49404771,60899.0,60898.0,0.5848]
[1724266830384,0.5423697,60899.0,60898.0,0.4154]
[1724266830583,0.2369577,60899.0,60898.0,0.4154]
[1724266830831,0.2359577,60899.0,60898.0,0.4014]
[1724266831035,0.5633697,60899.0,60898.0,0.3874]
[1724266831249,0.00242971,60899.0,60898.0,1.410745]
[1724266831475,0.00242971,60899.0,60898.0,1.57474798]
[1724266831632,0.00142971,60899.0,60898.0,1.55374798]
[1724266831994,0.00142971,60899.0,60898.0,1.55674798]
[1724266832195,0.00142971,60899.0,60898.0,1.392745]
[1724266832407,0.00242971,60899.0,60898.0,1.072327]
[1724266832674,0.00042971,60899.0,60898.0,0.735909]
[1724266832930,0.00042971,60899.0,60898.0,0.5807]
[1724266832931,0.00142971,60899.0,60898.0,0.5807]
[1724266833345,0.00142971,60899.0,60898.0,0.5777]
[1724266833552,0.8697817,60899.0,60898.0,0.009]
[1724266833790,2.0024057,60899.0,60898.0,0.009]
[1724266834002,2.4568177,60899.0,60898.0,0.012]
[1724266834238,2.62980406,60899.0,60898.0,0.003]
[1724266834449,2.7278905,60899.0,60898.0,0.003]
[1724266834657,2.76487808,60899.0,60898.0,0.007]
[1724266834872,2.211326,60897.0,60896.0,0.0009075]
[1724266835087,2.91057044,60897.0,60896.0,0.0009075]
[1724266835506,0.16428,60872.0,60868.0,0.07907254]
[1724266836133,0.492823,60874.0,60868.0,0.07907254]
[1724266836338,0.164276,60873.0,60868.0,0.07907254]
[1724266836541,0.328523,60879.0,60868.0,0.24336154]
[1724266836768,0.07369389,60878.0,60868.0,0.24336154]
[1724266836969,0.164274,60874.0,60868.0,0.24336154]
[1724266837346,0.164274,60874.0,60868.0,0.24536154]
[1724266837686,0.07369389,60878.0,60869.0,0.164285]
[1724266837889,0.164267,60877.0,60868.0,0.07907254]
[1724266838124,0.23809783,60876.0,60868.0,0.07907254]
[1724266838330,0.21509783,60876.0,60868.0,0.24536154]
[1724266838533,0.023,60875.0,60868.0,0.24536154]
[1724266838742,0.001,60874.0,60869.0,0.4127]
[1724266839112,0.023,60875.0,60869.0,0.4127]
[1724266839496,0.187271,60875.0,60869.0,0.4127]
[1724266839907,0.001,60874.0,60870.0,0.164284]
[1724266840139,0.023,60875.0,60870.0,0.164284]
[1724266840354,0.023,60875.0,60871.0,0.328561]
[1724266840560,0.002,60875.0,60870.0,0.164283]
[1724266840973,0.001,60875.0,60870.0,0.164283]
[1724266841179,0.001,60875.0,60872.0,0.559577]
[1724266841387,0.001,60875.0,60873.0,0.164276]
[1724266841601,0.164259,60880.0,60872.0,0.559578]
[1724266841602,0.187262,60879.0,60872.0,0.559578]
[1724266841800,0.187262,60879.0,60873.0,0.164274]
[1724266841801,0.0504915,60878.0,60873.0,0.164274]
[1724266842014,0.01719149,60884.0,60873.0,0.328552]
[1724266842218,0.01719149,60884.0,60873.0,0.685528]
[1724266842219,0.001,60874.0,60873.0,0.685528]
[1724266842418,0.00991481,60887.0,60873.0,0.1927]
[1724266842656,0.328504,60882.0,60870.0,0.002]
[1724266842856,0.164269,60876.0,60870.0,0.002]
[1724266843059,0.32848,60887.0,60878.0,0.328522]
[1724266843260,0.32848,60887.0,60879.0,0.164259]
[1724266843261,0.164246,60885.0,60879.0,0.164259]
[1724266843459,0.04954714,60884.0,60879.0,0.164259]
[1724266843632,0.23955746,60884.0,60879.0,0.164259]
[1724266843838,0.02576332,60884.0,60881.0,0.164253]
[1724266844044,0.02576332,60884.0,60880.0,0.1952]
[1724266844259,0.02576332,60884.0,60881.0,0.3856]
[1724266844462,0.02576332,60884.0,60882.0,0.16425]
[1724266845074,0.02576332,60884.0,60881.0,0.3856]
[1724266845288,0.02576332,60884.0,60880.0,0.1952]
[1724266845289,0.02576332,60884.0,60883.0,0.821245]
[1724266845496,0.02676332,60884.0,60883.0,1.423445]
[1724266845702,0.02676332,60884.0,60883.0,1.094947]
[1724266845910,0.02676332,60884.0,60883.0,1.423445]
[1724266846137,0.02676332,60884.0,60883.0,1.91594598]
[1724266846138,0.02776332,60884.0,60883.0,1.91594598]
[1724266846346,0.02676332,60884.0,60883.0,1.91594598]
[1724266846558,0.02576332,60884.0,60883.0,3.19165973]
[1724266846766,0.02676332,60884.0,60883.0,3.19865973]
[1724266847187,0.02776332,60884.0,60883.0,3.20265973]
[1724266847397,0.02776332,60884.0,60883.0,3.20165973]
[1724266847599,0.02776332,60884.0,60883.0,2.87316173]
[1724266847807,0.02776332,60884.0,60883.0,2.87016173]
[1724266847808,0.02676332,60884.0,60883.0,2.87016173]
[1724266848005,0.02676332,60884.0,60883.0,2.86616173]
[1724266848214,0.02776332,60884.0,60883.0,2.87316173]
[1724266848421,0.02776332,60884.0,60883.0,2.86616173]
[1724266848619,0.02776332,60884.0,60883.0,3.19465973]
[1724266849463,0.02876332,60884.0,60883.0,3.20165973]
[1724266849671,0.02876332,60884.0,60883.0,3.20265973]
[1724266849874,0.02876332,60884.0,60883.0,3.20465973]
[1724266850286,0.02876332,60884.0,60883.0,3.20165973]
[1724266851691,0.02876332,60884.0,60883.0,3.20265973]
[1724266852007,0.02876332,60884.0,60883.0,3.20165973]
[1724266854605,0.02876332,60884.0,60883.0,3.20465973]
[1724266854801,0.02876332,60884.0,60883.0,3.53515773]
[1724266855002,0.02876332,60884.0,60883.0,3.55077224]
[1724266855211,0.02876332,60884.0,60883.0,3.54777224]
[1724266855375,0.02876332,60884.0,60883.0,3.20265973]
[1724266855985,0.02876332,60884.0,60883.0,3.20165973]
[1724266856744,0.02958832,60884.0,60883.0,3.20165973]
[1724266857825,0.02958832,60884.0,60883.0,3.20265973]
[1724266858680,0.02958832,60884.0,60883.0,3.20465973]
[1724266858862,0.02958832,60884.0,60883.0,3.20665973]
[1724266859947,0.02958832,60884.0,60883.0,3.20165973]
[1724266860368,0.02958832,60884.0,60883.0,3.20465973]
[1724266861019,0.02958832,60884.0,60883.0,3.20665973]
[1724266861429,0.02958832,60884.0,60883.0,3.20265973]
[1724266862319,0.02917571,60884.0,60883.0,3.20465973]
[1724266862710,0.02917571,60884.0,60883.0,3.53515773]
[1724266863189,0.02917571,60884.0,60883.0,3.20665973]
[1724266863403,0.02917571,60884.0,60883.0,3.20265973]
[1724266864881,0.02917571,60884.0,60883.0,3.20465973]
[1724266865089,0.02917571,60884.0,60883.0,3.53315773]
[1724266865520,0.02917571,60884.0,60883.0,3.53515773]
[1724266865671,0.02917571,60884.0,60883.0,3.55275015]
[1724266866302,0.02917571,60884.0,60883.0,2.55275015]
[1724266866505,0.02917571,60884.0,60883.0,2.71699915]
[1724266866681,0.02917571,60884.0,60883.0,2.69940673]
[1724266866882,0.02917571,60884.0,60883.0,3.04549593]
[1724266867204,0.02917571,60884.0,60883.0,2.71699793]
[1724266867605,0.02917571,60884.0,60883.0,3.04549593]
[1724266867966,0.00042971,60899.0,60898.0,1.149463]
[1724266868254,0.00042971,60899.0,60898.0,2.16068173]
[1724266869248,0.00142971,60899.0,60898.0,2.16568173]
[1724266869613,0.00242971,60899.0,60898.0,2.76048173]
[1724266873439,0.00242971,60899.0,60898.0,2.17268173]
[1724266875060,0.00242971,60899.0,60898.0,2.50109973]
[1724266875268,0.00242971,60899.0,60898.0,2.89839973]
[1724266876127,0.00142971,60899.0,60898.0,2.89339973]
[1724266876330,0.00142971,60899.0,60898.0,2.89539973]
[1724266876529,0.00142971,60899.0,60898.0,2.89239973]
[1724266876658,0.00142971,60899.0,60898.0,2.90239973]
[1724266876659,0.00242971,60899.0,60898.0,2.90239973]
[1724266877736,0.00142971,60899.0,60898.0,3.22581773]
[1724266877947,0.018006,60919.0,60916.0,1.14912]
[1724266878149,0.000824,60919.0,60916.0,2.03084298]
[1724266878268,0.000824,60919.0,60916.0,1.70252298]
[1724266878610,0.000824,60919.0,60916.0,1.14912]
[1724266878787,0.42394402,60918.0,60916.0,1.14912]
[1724266879002,0.42394402,60918.0,60916.0,0.8208]
[1724266879202,0.196924,60917.0,60916.0,0.015]
[1724266879407,0.196924,60917.0,60916.0,0.17916]
[1724266879620,0.196924,60917.0,60916.0,0.8208]
[1724266879798,0.196924,60917.0,60916.0,0.50648]
[1724266879999,0.000824,60917.0,60916.0,2.91482902]
[1724266881023,0.001824,60917.0,60916.0,2.92582902]
[1724266881224,0.001824,60917.0,60916.0,2.91182902]
[1724266881433,0.001824,60917.0,60916.0,2.92282902]
[1724266881633,0.001824,60917.0,60916.0,2.91282902]
[1724266881823,0.02756735,60917.0,60916.0,2.91482902]
[1724266882028,0.02756735,60917.0,60916.0,2.92482902]
[1724266883424,0.02756735,60917.0,60916.0,2.92582902]
[1724266883572,0.02756735,60917.0,60916.0,3.02782902]
[1724266884219,0.02756735,60917.0,60916.0,3.81704902]
[1724266884556,0.02756735,60917.0,60916.0,3.81404902]
[1724266884780,0.02756735,60917.0,60916.0,3.48572902]
[1724266885134,0.02756735,60917.0,60916.0,3.48672902]
[1724266885334,0.02656735,60917.0,60916.0,3.46472902]
[1724266885658,0.02756735,60917.0,60916.0,3.48972902]
[1724266885877,0.02756735,60917.0,60916.0,3.49272902]
[1724266886122,0.02756735,60917.0,60916.0,3.47872902]
[1724266886345,0.02756735,60917.0,60916.0,3.49072902]
[1724266886703,0.02756735,60917.0,60916.0,3.83289378]
[1724266887262,0.02756735,60917.0,60916.0,3.82789378]
[1724266887487,0.02756735,60917.0,60916.0,3.48557378]
[1724266887488,0.02656735,60917.0,60916.0,3.48557378]
[1724266887691,0.000824,60917.0,60916.0,3.22047378]
[1724266887896,0.000824,60917.0,60916.0,3.22247378]
[1724266888982,0.000824,60917.0,60916.0,2.37668774]
[1724266889229,0.000824,60917.0,60916.0,2.98710774]
[1724266890326,0.000824,60917.0,60916.0,2.97310774]
[1724266890776,0.000824,60917.0,60916.0,3.31542774]
[1724266891134,0.000824,60917.0,60916.0,3.28742774]
[1724266891331,0.000824,60917.0,60916.0,3.30142774]
[1724266891567,0.000824,60917.0,60916.0,3.31542774]
[1724266891763,0.000824,60917.0,60916.0,3.30142774]
[1724266891971,0.000824,60917.0,60916.0,3.31542774]
[1724266892406,0.000824,60917.0,60916.0,2.98310774]
[1724266892552,0.000824,60917.0,60916.0,2.26384298]
[1724266893477,0.000824,60917.0,60916.0,2.87326298]
[1724266893678,0.000824,60917.0,60916.0,2.87226298]
[1724266894480,0.000824,60917.0,60916.0,2.87726298]
[1724266894654,0.000824,60917.0,60916.0,2.97326298]
[1724266894915,0.000824,60917.0,60916.0,2.64394298]
[1724266895680,0.000824,60917.0,60916.0,2.97526298]
[1724266895838,0.000824,60917.0,60916.0,2.97326298]
[1724266897657,0.026564,60917.0,60916.0,2.97326298]
[1724266898015,0.026564,60917.0,60916.0,3.30558298]
[1724266898214,0.026564,60917.0,60916.0,2.97726298]
[1724266898833,0.026564,60917.0,60916.0,4.15136902]
[1724266900596,0.000824,60919.0,60916.0,4.15136902]
[1724266900597,0.000824,60919.0,60918.0,2.039395]
[1724266900797,0.000824,60919.0,60918.0,2.30339798]
[1724266901151,0.000824,60919.0,60918.0,2.63170798]
[1724266901500,0.000824,60925.0,60924.0,2.078146]
[1724266901637,0.000824,60925.0,60924.0,2.62224898]
[1724266901835,0.000824,60925.0,60924.0,2.95052598]
[1724266902037,0.000824,60925.0,60924.0,3.27880298]
[1724266902672,0.000824,60925.0,60924.0,3.29280298]
[1724266902871,0.000824,60925.0,60924.0,3.30680298]
[1724266904679,0.000824,60925.0,60924.0,4.15258902]
[1724266905678,0.000824,60925.0,60924.0,4.14858902]
[1724266906074,0.000824,60925.0,60924.0,4.15058902]
[1724266906519,0.000824,60925.0,60924.0,4.15258902]
[1724266906897,0.000824,60925.0,60924.0,4.14858902]
[1724266907328,0.000824,60925.0,60924.0,4.15058902]
[1724266907544,0.000824,60925.0,60924.0,4.15258902]
[1724266907733,0.000824,60925.0,60924.0,4.15058902]
[1724266908081,0.000824,60925.0,60924.0,4.14858902]
[1724266910197,0.000824,60925.0,60924.0,4.15258902]
[1724266912089,0.000824,60925.0,60924.0,4.15058902]
[1724266912293,0.000824,60925.0,60924.0,4.14858902]
[1724266912515,0.000824,60925.0,60924.0,4.15058902]
[1724266912717,0.184124,60925.0,60924.0,1.34097198]
[1724266915258,0.000824,60925.0,60924.0,1.34097198]
[1724266919977,0.000824,60925.0,60924.0,1.66924898]
[1724266920175,0.000824,60925.0,60924.0,1.76924898]
[1724266921179,0.000824,60925.0,60924.0,2.61503502]
[1724266926824,0.02573635,60928.0,60927.0,1.148913]
[1724266927188,0.02573635,60928.0,60927.0,1.31291598]
[1724266927925,0.60543635,60928.0,60927.0,0.506391]
[1724266928369,0.60543635,60928.0,60927.0,0.848652]
[1724266928971,0.60543635,60928.0,60927.0,0.520391]
[1724266929203,0.60543635,60928.0,60927.0,0.834652]
[1724266929569,0.60543635,60928.0,60927.0,0.846652]
[1724266930220,0.60504121,60928.0,60927.0,0.846652]
[1724266930621,0.60504121,60928.0,60927.0,0.832652]
[1724266931032,0.60504121,60928.0,60927.0,1.01065498]
[1724266931435,0.60504121,60928.0,60927.0,0.846652]
[1724266931646,0.60504121,60928.0,60927.0,0.026]
[1724266931853,0.60504121,60928.0,60927.0,0.19013]
[1724266932056,0.60504121,60928.0,60927.0,0.518391]
[1724266932468,0.62804121,60928.0,60927.0,0.014]
[1724266932673,0.79216921,60928.0,60927.0,0.027]
[1724266932881,0.62804121,60928.0,60927.0,0.027]
[1724266933052,0.79216921,60928.0,60927.0,0.014]
[1724266933474,0.79216921,60928.0,60927.0,0.021]
[1724266933793,0.60504121,60928.0,60927.0,0.17113]
[1724266933988,0.60504121,60928.0,60927.0,0.502391]
[1724266934340,0.60504121,60928.0,60927.0,0.825652]
[1724266934539,0.60504121,60928.0,60927.0,0.015]
[1724266935174,1.12042521,60928.0,60927.0,0.015]
[1724266935379,1.6028753,60928.0,60927.0,0.015]
[1724266936069,1.6038753,60928.0,60927.0,0.015]
[1724266936260,1.49209526,60928.0,60927.0,0.01]
[1724266936460,1.49509526,60928.0,60927.0,0.011]
[1724266936720,1.49209526,60928.0,60927.0,0.001]
[1724266936850,0.164142,60923.0,60918.0,0.164154]
[1724266937050,0.164144,60922.0,60918.0,0.164154]
[1724266937254,1.392047,60920.0,60917.0,0.07752]
[1724266937458,1.43953873,60920.0,60917.0,0.07752]
[1724266937734,1.43653873,60920.0,60917.0,0.07752]
[1724266937846,1.45953873,60920.0,60917.0,0.07752]
[1724266938494,1.064565,60918.0,60917.0,0.07710153]
[1724266938699,1.087565,60918.0,60917.0,0.07710153]
[1724266939112,0.5721,60918.0,60917.0,0.24125853]
[1724266939251,0.5721,60918.0,60917.0,0.89788853]
[1724266939452,0.5721,60918.0,60917.0,0.89635269]
[1724266939656,0.5721,60918.0,60917.0,0.90235269]
[1724266940285,0.5721,60918.0,60917.0,0.89635269]
[1724266940491,0.5721,60918.0,60917.0,0.90735269]
[1724266940948,0.5721,60918.0,60917.0,0.92135269]
[1724266941725,0.5721,60918.0,60917.0,0.89635269]
[1724266942157,0.5721,60918.0,60917.0,0.90735269]
[1724266942414,0.329085,60928.0,60927.0,0.492391]
[1724266942415,0.000824,60928.0,60927.0,0.492391]
[1724266942814,0.574924,60928.0,60927.0,0.492391]
[1724266943507,0.574924,60928.0,60927.0,0.16413]
[1724266943635,0.574924,60928.0,60927.0,0.17113]
[1724266944647,0.574924,60928.0,60927.0,0.499391]
[1724266945063,0.000824,60928.0,60927.0,1.32191598]
[1724266945488,0.000824,60928.0,60927.0,2.16770202]
[1724266945686,0.000824,60928.0,60927.0,2.90816302]
[1724266946522,0.000824,60928.0,60927.0,2.90116302]
[1724266946779,0.000824,60928.0,60927.0,2.89916302]
[1724266947147,0.000824,60928.0,60927.0,2.91316302]
[1724266947438,0.000824,60928.0,60927.0,2.89916302]
[1724266947870,0.000824,60928.0,60927.0,2.91316302]
[1724266948592,0.000824,60928.0,60927.0,2.18670202]
[1724266948925,0.000824,60928.0,60927.0,2.17270202]
[1724266949107,0.000824,60928.0,60927.0,2.59790202]
[1724266949513,0.000824,60928.0,60927.0,2.92616302]
[1724266949736,0.000824,60928.0,60927.0,2.89816302]
[1724266949963,0.000824,60928.0,60927.0,2.92616302]
[1724266950608,0.000824,60928.0,60927.0,3.02716302]
[1724266950811,0.000824,60928.0,60927.0,3.21056302]
[1724266951012,0.000824,60928.0,60927.0,3.22456302]
[1724266951407,0.000824,60928.0,60927.0,3.21056302]
[1724266951664,0.000824,60928.0,60927.0,3.19656302]
[1724266951846,0.000824,60928.0,60927.0,3.22456302]
[1724266952262,0.000824,60928.0,60927.0,3.21056302]
[1724266952620,0.000824,60928.0,60927.0,3.22456302]
[1724266952819,0.000824,60928.0,60927.0,3.22546942]
[1724266953023,0.000824,60928.0,60927.0,3.19746942]
[1724266953387,0.000824,60928.0,60927.0,3.22546942]
[1724266953790,0.000824,60928.0,60927.0,3.21146942]
[1724266953901,0.000824,60928.0,60927.0,3.22546942]
[1724266956328,0.000824,60928.0,60927.0,3.22646942]
[1724266957741,0.000824,60928.0,60927.0,3.55473042]
[1724266957941,0.000824,60928.0,60927.0,3.22646942]
[1724266958148,0.000824,60928.0,60927.0,3.2262]
[1724266958400,0.000824,60928.0,60927.0,3.2122]
[1724266958654,0.000824,60928.0,60927.0,3.2262]
[1724266959062,0.000824,60928.0,60927.0,3.2122]
[1724266959288,0.000824,60928.0,60927.0,3.1982]
[1724266959489,0.000824,60928.0,60927.0,3.2122]
[1724266959830,0.000824,60928.0,60927.0,3.2262]
[1724266960232,0.000824,60928.0,60927.0,3.2252]
[1724266960461,0.000824,60928.0,60927.0,3.2122]
[1724266960882,0.000824,60928.0,60927.0,3.2262]
[1724266961426,0.000824,60928.0,60927.0,3.2122]
[1724266962026,0.000824,60928.0,60927.0,3.2262]
[1724266963054,0.000824,60928.0,60927.0,3.2252]
[1724266963275,0.000824,60928.0,60927.0,3.2262]
[1724266966638,0.000824,60928.0,60927.0,3.554461]
[1724266968358,0.000824,60928.0,60927.0,3.2262]
[1724266971190,0.000824,60928.0,60927.0,3.554461]
[1724266971386,0.000824,60928.0,60927.0,3.556461]
[1724266971631,0.000824,60928.0,60927.0,3.2282]
[1724266971765,0.000824,60928.0,60927.0,3.554461]
[1724266973216,0.0005,60932.0,60931.0,0.16412]
[1724266973425,0.0005,60932.0,60931.0,1.50132502]
[1724266973612,0.0005,60932.0,60931.0,2.58604502]
[1724266975537,0.0005,60932.0,60931.0,2.61404502]
[1724266975721,0.0005,60932.0,60931.0,2.60004502]
[1724266975916,0.0005,60932.0,60931.0,2.58604502]
[1724266976335,0.0005,60932.0,60931.0,2.92828502]
[1724266976540,0.0005,60932.0,60931.0,2.94228502]
[1724266977573,0.001324,60932.0,60931.0,2.94228502]
[1724266980535,0.001324,60932.0,60931.0,3.05408502]
[1724266982652,0.38825,60941.0,60931.0,3.05408502]
[1724266982653,0.00825,60941.0,60938.0,2.29051225]
[1724266982874,0.00825,60941.0,60938.0,2.45451523]
[1724266983133,0.00825,60941.0,60938.0,2.55451523]
[1724266983538,0.00825,60941.0,60938.0,2.74801523]
[1724266983956,0.00825,60941.0,60938.0,2.74901523]
[1724266984369,0.00039663,60948.0,60947.0,0.001]
[1724266984579,0.00039663,60948.0,60947.0,1.51873198]
[1724266984787,0.00039663,60948.0,60947.0,2.50319098]
[1724266984991,0.00039663,60948.0,60947.0,2.93134398]
[1724266985205,0.00824,60957.0,60950.0,0.001]
[1724266985407,0.00824,60957.0,60953.0,1.92084698]
[1724266985652,0.00824,60957.0,60953.0,2.40654698]
[1724266986453,0.00824,60957.0,60953.0,2.73466798]
[1724266986661,0.00824,60957.0,60953.0,2.42054698]
[1724266987287,0.00824,60957.0,60953.0,1.75454698]
[1724266987695,0.00824,60957.0,60953.0,1.42642598]
[1724266987907,0.40779638,60954.0,60953.0,1.01230498]
[1724266988116,0.40779638,60954.0,60953.0,1.82926702]
[1724266988329,0.00039638,60954.0,60953.0,2.17138802]
[1724266988529,0.00039638,60954.0,60953.0,2.18538802]
[1724266988741,0.00039638,60954.0,60953.0,1.84326702]
[1724266988942,0.00039638,60954.0,60953.0,1.82926702]
[1724266989117,0.00039638,60954.0,60953.0,1.85726702]
[1724266989323,0.00039638,60954.0,60953.0,1.84326702]
[1724266989708,0.00122038,60954.0,60953.0,1.84326702]
[1724266989908,0.00122038,60954.0,60953.0,2.18338802]
[1724266990157,0.00122038,60954.0,60953.0,2.36808802]
[1724266990716,0.00122038,60954.0,60953.0,2.18338802]
[1724266990887,0.00122038,60954.0,60953.0,2.16938802]
[1724266991107,0.00122038,60954.0,60953.0,2.15738802]
[1724266991391,0.00122038,60954.0,60953.0,2.17138802]
[1724266992404,0.18672038,60954.0,60953.0,0.028]
[1724266992620,0.18672038,60954.0,60953.0,0.014]
[1724266992621,1.13260792,60954.0,60953.0,0.014]
[1724266992817,1.13260792,60954.0,60927.0,0.09635098]
[1724266992818,0.328256,60928.0,60927.0,0.0009064]
[1724266993023,1.102584,60928.0,60927.0,0.0009064]
[1724266993226,1.45384,60928.0,60927.0,0.0009064]